bitfinex-derivatives/quotes_BTCF0:USTF0_20260207
["timestamp","ask_amount","ask_price","bid_price","bid_amount"]
[1770437532620,0.070031,71446.0,71373.0,0.11048584]
[1770437532621,0.11264549,71416.0,71377.0,0.014019]
[1770437532819,0.10943512,71414.0,71377.0,0.014019]
[1770437533116,0.10943512,71407.0,71385.0,0.014017]
[1770437533313,0.5,71416.0,71370.0,0.13796666]
[1770437533314,0.10943512,71415.0,71370.0,0.13796666]
[1770437533517,0.5,71416.0,71370.0,0.13796666]
[1770437533821,0.10943512,71415.0,71382.0,0.014018]
[1770437534010,0.10943512,71415.0,71370.0,0.13796666]
[1770437534209,0.12335856,71414.0,71380.0,0.014018]
[1770437534618,0.10934656,71414.0,71384.0,0.014018]
[1770437534920,0.10934656,71414.0,71363.0,0.014022]
[1770437534921,0.10934656,71414.0,71367.0,0.070107]
[1770437535314,0.12396273,71413.0,71363.0,0.014022]
[1770437536018,0.10985533,71411.0,71377.0,0.014019]
[1770437536222,0.10985533,71411.0,71363.0,0.014022]
[1770437536416,0.10985533,71411.0,71376.0,0.014019]
[1770437537112,0.10985533,71411.0,71356.0,0.5142]
[1770437537113,0.11041626,71403.0,71368.0,0.014021]
[1770437537317,0.11041626,71397.0,71363.0,0.014022]
[1770437537918,0.11031502,71395.0,71363.0,0.014022]
[1770437538121,0.5,71411.0,71336.0,0.44044]
[1770437538122,0.014018,71381.0,71336.0,0.44044]
[1770437538326,0.11031502,71392.0,71362.0,0.014022]
[1770437538827,0.11031502,71392.0,71366.0,0.014021]
[1770437539017,0.11031502,71392.0,71361.0,0.014022]
[1770437539421,0.12433102,71392.0,71361.0,0.014022]
[1770437539619,0.11031502,71392.0,71365.0,0.014021]
[1770437539819,0.1100168,71391.0,71365.0,0.014021]
[1770437540425,0.1100168,71391.0,71370.0,0.014021]
[1770437540626,0.5,71392.0,71355.0,0.070119]
[1770437540828,0.10964035,71391.0,71361.0,0.014022]
[1770437541127,0.10964035,71391.0,71364.0,0.014022]
[1770437541322,0.10964035,71391.0,71368.0,0.014021]
[1770437541714,0.60964035,71391.0,71368.0,0.014021]
[1770437542224,0.10954797,71390.0,71363.0,0.014022]
[1770437542616,0.10954797,71390.0,71367.0,0.014021]
[1770437542819,0.10954797,71390.0,71368.0,0.014021]
[1770437543015,0.10954797,71390.0,71355.0,0.001]
[1770437543217,0.10954797,71390.0,71344.0,0.2331]
[1770437543426,0.10954797,71390.0,71362.0,0.014022]
[1770437543727,0.11030511,71385.0,71357.0,0.014023]
[1770437543920,0.1102044,71381.0,71337.0,0.2331]
[1770437544118,0.1102044,71381.0,71354.0,0.014024]
[1770437544318,0.1102044,71381.0,71357.0,0.014023]
[1770437545027,0.1102044,71381.0,71363.0,0.014022]
[1770437545322,0.1102044,71381.0,71360.0,0.014022]
[1770437545926,0.1102044,71381.0,71356.0,0.014023]
[1770437546826,0.11082489,71378.0,71352.0,0.014024]
[1770437547027,0.11082489,71378.0,71324.0,0.1635039]
[1770437547028,0.11063026,71359.0,71332.0,0.2331]
[1770437547216,0.11063026,71344.0,71316.0,0.014031]
[1770437547527,0.11063026,71344.0,71298.0,0.014035]
[1770437547722,0.11063026,71344.0,71324.0,0.01403]
[1770437547924,0.1105264,71359.0,71310.0,0.084195]
[1770437548115,0.13770926,71380.0,71325.0,0.014029]
[1770437548116,0.014024,71354.0,71325.0,0.014029]
[1770437548319,0.1105264,71351.0,71324.0,0.014029]
[1770437548629,0.13770926,71380.0,71308.0,0.014033]
[1770437548630,0.1105264,71346.0,71308.0,0.014033]
[1770437548818,0.11014106,71339.0,71296.0,0.11048584]
[1770437549028,0.11014106,71339.0,71286.0,0.20425784]
[1770437549029,0.11014106,71348.0,71299.0,0.014034]
[1770437549319,0.014022,71365.0,71310.0,0.014032]
[1770437549320,0.11014106,71331.0,71310.0,0.014032]
[1770437549519,0.11014106,71331.0,71313.0,0.014032]
[1770437549721,0.11014106,71331.0,71305.0,0.014033]
[1770437549922,0.11014106,71331.0,71308.0,0.014033]
[1770437550330,0.11014106,71331.0,71311.0,0.014032]
[1770437550630,0.12373549,71342.0,71311.0,0.014032]
[1770437550928,0.10970949,71342.0,71304.0,0.11048584]
[1770437551131,0.10970949,71342.0,71305.0,0.014033]
[1770437551316,0.10970949,71342.0,71321.0,0.01403]
[1770437551731,0.1125858,71335.0,71301.0,0.11048584]
[1770437552121,0.12648163,71334.0,71307.0,0.014033]
[1770437553331,0.11245363,71334.0,71310.0,0.014032]
[1770437553828,0.12648163,71334.0,71306.0,0.014033]
[1770437555742,0.12530521,71331.0,71306.0,0.014033]
[1770437556037,0.111056,71321.0,71303.0,0.11048584]
[1770437556237,0.111056,71319.0,71297.0,0.11048584]
[1770437556631,0.014031,71318.0,71296.0,0.11048584]
[1770437556937,0.12510454,71315.0,71290.0,0.11048584]
[1770437557140,0.12510554,71312.0,71289.0,0.11048584]
[1770437557338,0.014033,71309.0,71289.0,0.11048584]
[1770437557532,0.014033,71309.0,71285.0,0.1635039]
[1770437557533,0.11107354,71309.0,71285.0,0.12452284]
[1770437557734,0.11107354,71309.0,71287.0,0.014037]
[1770437557932,0.11107354,71309.0,71286.0,0.32124498]
[1770437557933,0.11107354,71309.0,71286.0,0.11048584]
[1770437558136,0.014031,71317.0,71291.0,0.014036]
[1770437558440,0.11095868,71320.0,71294.0,0.014035]
[1770437558839,0.11100651,71340.0,71293.0,0.11048584]
[1770437559034,0.11100651,71340.0,71282.0,0.014038]
[1770437559035,0.01403,71322.0,71297.0,0.12452084]
[1770437559235,0.014029,71325.0,71300.0,0.014034]
[1770437559743,0.014031,71316.0,71291.0,0.014036]
[1770437559941,0.11089209,71317.0,71291.0,0.014036]
[1770437560143,0.12492309,71316.0,71291.0,0.014036]
[1770437560336,0.12492409,71314.0,71291.0,0.014036]
[1770437560933,0.12492409,71314.0,71266.0,0.27603263]
[1770437560934,0.11076408,71303.0,71282.0,0.11048584]
[1770437561136,0.014031,71317.0,71273.0,0.11048584]
[1770437561137,0.11076408,71301.0,71273.0,0.11048584]
[1770437561438,0.11076408,71301.0,71272.0,0.11048584]
[1770437561637,0.014034,71300.0,71277.0,0.014039]
[1770437561839,0.11065226,71331.0,71275.0,0.11048584]
[1770437562037,0.10965226,71326.0,71291.0,0.11048584]
[1770437562337,0.014029,71325.0,71297.0,0.014035]
[1770437562645,0.014029,71325.0,71276.0,0.27603263]
[1770437562646,0.10965226,71325.0,71289.0,0.11048584]
[1770437562846,0.10965226,71325.0,71290.0,0.32122313]
[1770437563042,0.1097555,71336.0,71292.0,0.11048584]
[1770437563340,0.1097555,71372.0,71321.0,0.11048584]
[1770437563543,0.1097555,71372.0,71337.0,0.11048584]
[1770437563741,0.0002,71377.0,71341.0,0.11048584]
[1770437563936,0.0002,71377.0,71352.0,0.014024]
[1770437564742,0.1097555,71383.0,71352.0,0.014024]
[1770437565641,0.1237735,71383.0,71352.0,0.014024]
[1770437565841,0.10914089,71378.0,71347.0,0.12451084]
[1770437566042,0.10914089,71378.0,71347.0,0.014025]
[1770437566247,0.10914089,71378.0,71347.0,0.12451084]
[1770437566443,0.10914089,71378.0,71347.0,0.014025]
[1770437566745,0.10914089,71378.0,71347.0,0.12451084]
[1770437566952,0.10914089,71378.0,71347.0,0.014025]
[1770437568545,0.10914865,71372.0,71344.0,0.11048584]
[1770437568743,0.10914865,71372.0,71343.0,0.11048584]
[1770437568946,0.1379106,71390.0,71337.0,0.11048584]
[1770437568947,0.10901749,71361.0,71337.0,0.11048584]
[1770437569141,0.10901749,71355.0,71327.0,0.11048584]
[1770437569342,0.10901749,71355.0,71324.0,0.11048584]
[1770437569548,0.10901749,71355.0,71322.0,0.01403]
[1770437569747,0.10901749,71349.0,71322.0,0.01403]
[1770437569943,0.10901749,71349.0,71325.0,0.014029]
[1770437570251,0.10901749,71349.0,71326.0,0.014029]
[1770437570445,0.10901749,71349.0,71321.0,0.01403]
[1770437570446,0.12304249,71349.0,71321.0,0.01403]
[1770437572661,0.014218,71384.0,71327.0,0.11048584]
[1770437572662,0.10919915,71369.0,71327.0,0.11048584]
[1770437572965,0.10919915,71369.0,71341.0,0.014026]
[1770437573154,0.10919915,71369.0,71336.0,0.11048584]
[1770437573349,0.10897247,71359.0,71333.0,0.014028]
[1770437573553,0.10897247,71359.0,71339.0,0.014027]
[1770437573755,0.10897247,71359.0,71342.0,0.014026]
[1770437574261,0.10897247,71359.0,71334.0,0.11048584]
[1770437574460,0.12299547,71359.0,71333.0,0.014028]
[1770437574857,0.12309429,71353.0,71329.0,0.014028]
[1770437575059,0.014017,71387.0,71328.0,0.11048584]
[1770437575060,0.014022,71362.0,71331.0,0.11048584]
[1770437575356,0.10907029,71361.0,71333.0,0.11048584]
[1770437575557,0.10907029,71361.0,71338.0,0.014027]
[1770437575754,0.10896216,71356.0,71333.0,0.11048584]
[1770437576060,0.10896216,71352.0,71329.0,0.014029]
[1770437576664,0.10896216,71352.0,71326.0,0.11048584]
[1770437576959,0.12298616,71352.0,71327.0,0.014029]
[1770437577864,0.014025,71349.0,71327.0,0.014029]
[1770437578162,0.10889611,71349.0,71327.0,0.014029]
[1770437578551,0.014025,71346.0,71324.0,0.11048584]
[1770437578755,0.1087442,71342.0,71318.0,0.11048584]
[1770437578957,0.1087442,71342.0,71321.0,0.01403]
[1770437579363,0.014027,71337.0,71314.0,0.12451684]
[1770437579557,0.1087442,71350.0,71315.0,0.11048584]
[1770437579764,0.1227692,71348.0,71316.0,0.32114077]
[1770437579962,0.1227692,71348.0,71315.0,0.11048584]
[1770437580361,0.1087442,71348.0,71315.0,0.11048584]
[1770437580663,0.10863924,71361.0,71333.0,0.014028]
[1770437580865,0.014024,71353.0,71328.0,0.014029]
[1770437581157,0.12351677,71355.0,71321.0,0.11048584]
[1770437581358,0.014024,71352.0,71329.0,0.014028]
[1770437581560,0.014025,71349.0,71325.0,0.014029]
[1770437581765,0.12351777,71349.0,71327.0,0.014029]
[1770437582264,0.10937747,71345.0,71319.0,0.11048584]
[1770437582467,0.10937747,71329.0,71306.0,0.11048584]
[1770437582666,0.014031,71317.0,71297.0,0.11048584]
[1770437582861,0.10797348,71322.0,71295.0,0.014035]
[1770437583169,0.10797348,71315.0,71288.0,0.11048584]
[1770437583355,0.014028,71330.0,71274.0,0.11048584]
[1770437583356,0.10797348,71301.0,71274.0,0.11048584]
[1770437583664,0.10797348,71299.0,71275.0,0.014039]
[1770437583858,0.10797348,71299.0,71268.0,0.1635039]
[1770437583859,0.12191254,71298.0,71274.0,0.014039]
[1770437584063,0.10787754,71309.0,71269.0,0.12452584]
[1770437584266,0.014034,71303.0,71276.0,0.014039]
[1770437584462,0.014034,71301.0,71276.0,0.014039]
[1770437584669,0.10787754,71302.0,71268.0,0.11048584]
[1770437584867,0.12191154,71302.0,71277.0,0.014039]
[1770437585857,0.10808664,71324.0,71301.0,0.014034]
[1770437586064,0.01403,71322.0,71296.0,0.014035]
[1770437586464,0.01403,71323.0,71288.0,0.11048584]
[1770437586665,0.01403,71323.0,71298.0,0.014035]
[1770437587571,0.12195829,71323.0,71298.0,0.014035]
[1770437587769,0.1078317,71314.0,71290.0,0.014036]
[1770437587972,0.014028,71333.0,71285.0,0.014037]
[1770437587973,0.014033,71308.0,71285.0,0.014037]
[1770437588176,0.1078317,71306.0,71274.0,0.11048584]
[1770437588360,0.1078317,71306.0,71283.0,0.014037]
[1770437588565,0.1078317,71317.0,71292.0,0.014036]
[1770437588767,0.014033,71309.0,71285.0,0.014037]
[1770437588972,0.107915,71311.0,71273.0,0.11048584]
[1770437589267,0.121948,71309.0,71285.0,0.014037]
[1770437589471,0.121948,71306.0,71281.0,0.12452384]
[1770437589672,0.014034,71303.0,71281.0,0.11048584]
[1770437589872,0.12185185,71303.0,71277.0,0.12452484]
[1770437590071,0.12185185,71303.0,71277.0,0.014039]
[1770437590371,0.10781785,71301.0,71275.0,0.11048584]
[1770437590574,0.10781785,71298.0,71277.0,0.014039]
[1770437590972,0.10781785,71298.0,71274.0,0.11048584]
[1770437591176,0.10767065,71296.0,71275.0,0.014039]
[1770437591375,0.014034,71301.0,71275.0,0.014039]
[1770437591671,0.014034,71301.0,71278.0,0.014039]
[1770437591874,0.10757619,71305.0,71278.0,0.014039]
[1770437592076,0.12161019,71305.0,71277.0,0.014039]
[1770437592377,0.10757619,71305.0,71285.0,0.014037]
[1770437592573,0.10457619,71328.0,71288.0,0.11048584]
[1770437592771,0.014029,71327.0,71302.0,0.014034]
[1770437592971,0.10457619,71328.0,71305.0,0.014033]
[1770437593277,0.10627737,71342.0,71300.0,0.11048584]
[1770437593470,0.10627737,71342.0,71304.0,0.11048584]
[1770437593471,0.014026,71340.0,71304.0,0.11048584]
[1770437593667,0.10627737,71342.0,71297.0,0.247135]
[1770437593668,0.014028,71331.0,71306.0,0.014033]
[1770437593876,0.12021696,71331.0,71306.0,0.014033]
[1770437594277,0.10618896,71331.0,71303.0,0.11048584]
[1770437594470,0.014027,71338.0,71311.0,0.014032]
[1770437594767,0.014027,71338.0,71314.0,0.014031]
[1770437595279,0.10618896,71341.0,71312.0,0.11048584]
[1770437595680,0.10618896,71341.0,71314.0,0.014031]
[1770437595884,0.10618896,71341.0,71317.0,0.014031]
[1770437596177,0.10618896,71341.0,71319.0,0.014031]
[1770437596776,0.014026,71340.0,71316.0,0.014031]
[1770437597376,0.10618896,71341.0,71318.0,0.014031]
[1770437597582,0.12021496,71341.0,71317.0,0.11048584]
[1770437597784,0.12021496,71341.0,71317.0,0.12451684]
[1770437598282,0.12021496,71341.0,71318.0,0.32115653]
[1770437598485,0.12021496,71341.0,71318.0,0.11048584]
[1770437598986,0.014023,71356.0,71318.0,0.11048584]
[1770437598987,0.11982688,71338.0,71318.0,0.11048584]
[1770437599683,0.11982688,71338.0,71316.0,0.11048584]
[1770437599884,0.10579988,71338.0,71316.0,0.11048584]
[1770437600384,0.10579988,71338.0,71313.0,0.1635039]
[1770437600385,0.10579988,71338.0,71315.0,0.11048584]
[1770437600583,0.10579988,71338.0,71310.0,0.11048584]
[1770437600783,0.10512403,71333.0,71310.0,0.11048584]
[1770437601188,0.10512403,71331.0,71310.0,0.11048584]
[1770437601486,0.10512403,71327.0,71306.0,0.11048584]
[1770437601686,0.10512403,71327.0,71304.0,0.11048584]
[1770437602380,0.01403,71324.0,71303.0,0.11048584]
[1770437602681,0.10504791,71326.0,71304.0,0.014033]
[1770437603687,0.10504791,71326.0,71303.0,0.11048584]
[1770437603688,0.11922572,71325.0,71303.0,0.11048584]
[1770437603881,0.11922572,71325.0,71302.0,0.12451984]
[1770437604386,0.11914999,71318.0,71301.0,0.11048584]
[1770437604689,0.11914999,71318.0,71297.0,0.11048584]
[1770437604886,0.10498183,71315.0,71297.0,0.11048584]
[1770437605189,0.01403,71324.0,71299.0,0.12451984]
[1770437605376,0.01403,71324.0,71300.0,0.32120605]
[1770437605692,0.10498183,71320.0,71296.0,0.11048584]
[1770437606183,0.014027,71336.0,71279.0,0.005]
[1770437606184,0.10490654,71312.0,71291.0,0.11048584]
[1770437606386,0.014032,71311.0,71291.0,0.11048584]
[1770437606588,0.11893854,71311.0,71288.0,0.11048584]
[1770437606983,0.10493369,71307.0,71287.0,0.11048584]
[1770437607290,0.10493369,71307.0,71284.0,0.1635039]
[1770437607291,0.10493369,71307.0,71285.0,0.014037]
[1770437607492,0.11896669,71307.0,71285.0,0.11048584]
[1770437607785,0.11896669,71307.0,71283.0,0.11048584]
[1770437608089,0.10485847,71305.0,71282.0,0.11048584]
[1770437608590,0.10485847,71300.0,71277.0,0.11048584]
[1770437609486,0.10352055,71296.0,71280.0,0.11048584]
[1770437610891,0.11779581,71292.0,71280.0,0.11048584]
[1770437611088,0.11779581,71292.0,71279.0,0.11048584]
[1770437611786,0.10375981,71292.0,71279.0,0.11048584]
[1770437611986,0.10375981,71292.0,71278.0,0.11048584]
[1770437612784,0.10375981,71292.0,71274.0,0.11048584]
[1770437613090,0.10357905,71290.0,71274.0,0.11048584]
[1770437613289,0.10357905,71290.0,71268.0,0.22056581]
[1770437613290,0.10357905,71290.0,71273.0,0.11048584]
[1770437614395,0.10357905,71290.0,71274.0,0.32129819]
[1770437614586,0.10357905,71290.0,71275.0,0.32129819]
[1770437614784,0.10357905,71290.0,71275.0,0.11048584]
[1770437615196,0.014035,71295.0,71275.0,0.11048584]
[1770437615887,0.014035,71295.0,71275.0,0.11148584]
[1770437616287,0.014033,71309.0,71288.0,0.014037]
[1770437616692,0.014033,71309.0,71287.0,0.12452284]
[1770437617089,0.014033,71307.0,71287.0,0.12452284]
[1770437617390,0.10371096,71312.0,71292.0,0.014036]
[1770437617589,0.014033,71309.0,71289.0,0.11048584]
[1770437617892,0.014032,71310.0,71288.0,0.12452284]
[1770437618186,0.10371096,71312.0,71288.0,0.11048584]
[1770437618387,0.014031,71318.0,71296.0,0.014035]
[1770437618782,0.014031,71318.0,71297.0,0.32123052]
[1770437618987,0.014031,71318.0,71297.0,0.11048584]
[1770437619581,0.014031,71318.0,71284.0,0.27603263]
[1770437619582,0.014031,71318.0,71298.0,0.014035]
[1770437619785,0.01403,71322.0,71291.0,0.014036]
[1770437619992,0.1036153,71323.0,71283.0,1.36182381]
[1770437619993,0.014031,71318.0,71290.0,0.11048584]
[1770437621184,0.1036153,71323.0,71290.0,0.11048584]
[1770437621390,0.1036153,71323.0,71283.0,0.922198]
[1770437621391,0.014028,71330.0,71297.0,0.11048584]
[1770437621588,0.014028,71331.0,71298.0,0.32119631]
[1770437621789,0.014028,71335.0,71312.0,0.014032]
[1770437622095,0.014028,71333.0,71308.0,0.014033]
[1770437622894,0.014028,71333.0,71311.0,0.014032]
[1770437623091,0.014027,71339.0,71303.0,0.11048584]
[1770437623292,0.11726603,71343.0,71306.0,0.11048584]
[1770437623492,0.11726603,71343.0,71308.0,0.11048584]
[1770437623797,0.11726603,71343.0,71309.0,0.32116248]
[1770437624000,0.10324003,71343.0,71309.0,0.014032]
[1770437624296,0.10296728,71333.0,71306.0,0.922153]
[1770437624596,0.10296728,71333.0,71309.0,0.014033]
[1770437624797,0.014029,71330.0,71307.0,0.014033]
[1770437624988,0.11699528,71333.0,71311.0,0.014032]
[1770437625501,0.014029,71328.0,71306.0,0.90812]
[1770437625799,0.11652194,71326.0,71302.0,0.014034]
[1770437626192,0.10249294,71323.0,71295.0,0.90804]
[1770437626392,0.11652294,71323.0,71295.0,0.922075]
[1770437626588,0.10249294,71323.0,71295.0,0.90804]
[1770437626899,0.014028,71331.0,71305.0,0.014033]
[1770437627100,0.014028,71331.0,71295.0,0.90804]
[1770437627101,0.10241488,71345.0,71295.0,1.01852584]
[1770437627398,0.10241488,71345.0,71323.0,0.01403]
[1770437627697,0.10241488,71345.0,71320.0,0.01403]
[1770437628298,0.10237149,71343.0,71319.0,0.01403]
[1770437629091,0.014026,71342.0,71319.0,0.01403]
[1770437629398,0.014026,71342.0,71316.0,0.014031]
[1770437629592,0.014026,71342.0,71318.0,0.014031]
[1770437629799,0.10237149,71343.0,71321.0,0.01403]
[1770437630387,0.10240986,71341.0,71318.0,0.014031]
[1770437630802,0.014027,71340.0,71318.0,0.014031]
[1770437630998,0.10227898,71361.0,71323.0,0.11048584]
[1770437631192,0.10227898,71361.0,71339.0,0.014026]
[1770437631498,0.10227898,71361.0,71335.0,0.014027]
[1770437631995,0.014021,71370.0,71341.0,0.014026]
[1770437632195,0.10223672,71369.0,71341.0,0.014026]
[1770437632598,0.10223672,71367.0,71341.0,0.014026]
[1770437632900,0.1024445,71378.0,71357.0,0.014023]
[1770437633295,0.1154605,71395.0,71368.0,0.014021]
[1770437633600,0.1014445,71384.0,71353.0,0.1635039]
[1770437633898,0.1014445,71384.0,71360.0,0.014022]
[1770437634095,0.1014445,71384.0,71363.0,0.014022]
[1770437634494,0.1014445,71384.0,71351.0,0.1635039]
[1770437634495,0.5,71395.0,71351.0,0.1635039]
[1770437634695,0.5,71395.0,71354.0,0.1635039]
[1770437634900,0.6150819,71395.0,71355.0,0.21054134]
[1770437635099,0.6150819,71395.0,71369.0,0.014021]
[1770437635698,0.1150819,71395.0,71369.0,0.014021]
[1770437636102,0.11504349,71386.0,71351.0,0.1635039]
[1770437636304,0.11504349,71386.0,71348.0,0.1635039]
[1770437636495,0.11504349,71386.0,71349.0,0.21053954]
[1770437636694,0.10102649,71382.0,71358.0,0.014023]
[1770437637004,0.10071159,71380.0,71354.0,0.014024]
[1770437637208,0.10071159,71380.0,71345.0,0.90792]
[1770437637394,0.10071159,71380.0,71353.0,0.014024]
[1770437637593,0.10071159,71380.0,71356.0,0.014023]
[1770437638001,0.10071159,71380.0,71345.0,0.90792]
[1770437638207,0.10071159,71380.0,71355.0,0.014023]
[1770437638406,0.014015,71398.0,71350.0,0.014024]
[1770437638407,0.10067757,71373.0,71350.0,0.014024]
[1770437638601,0.10067757,71373.0,71345.0,0.90792]
[1770437638800,0.10067757,71373.0,71351.0,0.014024]
[1770437639000,0.10067757,71373.0,71348.0,0.014025]
[1770437639401,0.10067587,71371.0,71348.0,0.014025]
[1770437640200,0.10064342,71366.0,71344.0,0.014026]
[1770437640499,0.10064342,71366.0,71343.0,0.014026]
[1770437640699,0.10064342,71366.0,71349.0,0.014025]
[1770437640898,0.10064342,71366.0,71345.0,0.014025]
[1770437641301,0.10064342,71366.0,71341.0,0.014026]
[1770437641501,0.10064342,71366.0,71343.0,0.014026]
[1770437642702,0.11466442,71366.0,71343.0,0.014026]
[1770437642898,0.10064342,71366.0,71342.0,0.014026]
[1770437643105,0.10051947,71358.0,71335.0,0.014027]
[1770437643811,0.10051947,71358.0,71339.0,0.014026]
[1770437644403,0.10051947,71358.0,71323.0,0.1635039]
[1770437644611,0.10048873,71344.0,71311.0,0.00012636]
[1770437644802,0.10048873,71344.0,71308.0,0.014033]
[1770437645002,0.10048873,71344.0,71319.0,0.01403]
[1770437645404,0.10077205,71341.0,71315.0,0.014031]
[1770437645704,0.10077205,71335.0,71312.0,0.014032]
[1770437645903,0.014023,71357.0,71301.0,0.90748]
[1770437645904,0.014025,71348.0,71322.0,0.01403]
[1770437646104,0.014024,71353.0,71331.0,0.014028]
[1770437646404,0.11473516,71364.0,71339.0,0.014027]
[1770437647307,0.014022,71361.0,71335.0,0.014027]
[1770437647510,0.10133429,71354.0,71319.0,0.1635039]
[1770437647704,0.10133429,71354.0,71330.0,0.014028]
[1770437649900,0.10098969,71349.0,71318.0,0.1635039]
[1770437650109,0.10098969,71346.0,71321.0,0.01403]
[1770437650316,0.10098969,71338.0,71309.0,0.1635039]
[1770437650504,0.10098969,71333.0,71311.0,0.014032]
[1770437650715,0.10098969,71406.0,71321.0,0.1635039]
[1770437650909,0.10106904,71387.0,71345.0,0.1635039]
[1770437651207,0.10106904,71387.0,71366.0,0.014021]
[1770437651410,0.10106904,71387.0,71349.0,0.014025]
[1770437651606,0.10106904,71387.0,71350.0,0.21053484]
[1770437651808,0.10106904,71387.0,71351.0,0.21053484]
[1770437652008,0.10106904,71387.0,71368.0,0.014021]
[1770437652314,0.1010263,71398.0,71375.0,0.014019]
[1770437652809,0.1010263,71398.0,71380.0,0.014018]
[1770437653308,0.00216387,71389.0,71356.0,0.1635039]
[1770437653516,0.1023891,71389.0,71374.0,0.01402]
[1770437653712,0.00244037,71382.0,71374.0,0.01402]
[1770437654012,0.00244037,71382.0,71354.0,0.014024]
[1770437654215,0.00244037,71382.0,71356.0,0.014023]
[1770437654404,0.00244037,71382.0,71375.0,0.014019]
[1770437654808,0.00244037,71379.0,71371.0,0.01402]
[1770437655613,0.00244037,71379.0,71374.0,0.01402]
[1770437655814,0.00244037,71377.0,71374.0,0.01402]
[1770437656215,0.10022523,71389.0,71374.0,0.01402]
[1770437656414,0.10022523,71389.0,71370.0,0.01402]
[1770437656616,0.10022523,71389.0,71373.0,0.01402]
[1770437656914,0.10022523,71389.0,71374.0,0.001]
[1770437657509,0.10022523,71389.0,71375.0,0.014019]
[1770437659317,0.10022523,71389.0,71375.0,0.015019]
[1770437660016,0.10022523,71389.0,71375.0,0.014019]
[1770437660212,0.10022523,71389.0,71352.0,0.014024]
[1770437660412,0.10022523,71389.0,71353.0,0.22457381]
[1770437660612,0.10022523,71389.0,71366.0,0.014021]
[1770437660812,0.09108945,71388.0,71366.0,0.014021]
[1770437662718,0.09108945,71388.0,71353.0,0.1635039]
[1770437662921,0.09108945,71388.0,71356.0,0.014023]
[1770437663216,0.09108945,71388.0,71366.0,0.014021]
[1770437663421,0.09105723,71387.0,71366.0,0.014021]
[1770437663927,0.09105723,71387.0,71370.0,0.01402]
[1770437664220,0.09105723,71387.0,71373.0,0.01402]
[1770437664423,9.3e-07,71377.0,71373.0,0.01402]
[1770437664609,0.09105723,71387.0,71373.0,0.01402]
[1770437664815,0.09105723,71387.0,71372.0,0.01402]
[1770437665620,0.09105723,71387.0,71361.0,0.014022]
[1770437665816,0.09105723,71387.0,71371.0,0.01402]
[1770437666022,0.09105723,71387.0,71368.0,0.014021]
[1770437666712,0.09105723,71387.0,71366.0,0.014021]
[1770437666910,0.09105723,71387.0,71357.0,0.1635039]
[1770437667111,0.09105723,71387.0,71358.0,0.21054407]
[1770437667317,0.09105723,71387.0,71365.0,0.014022]
[1770437667512,0.09105723,71387.0,71359.0,0.21054407]
[1770437667513,0.09105723,71387.0,71367.0,0.014021]
[1770437667719,0.09105723,71387.0,71357.0,0.1635039]
[1770437667921,0.09105723,71387.0,71358.0,0.21054407]
[1770437668121,0.09105723,71387.0,71359.0,0.21054407]
[1770437668321,0.09105723,71387.0,71360.0,0.21054407]
[1770437668520,0.09105723,71387.0,71361.0,0.21054407]
[1770437668720,0.09105723,71387.0,71354.0,0.1635039]
[1770437668923,0.09085904,71382.0,71359.0,0.014023]
[1770437669320,0.09085904,71382.0,71362.0,0.014022]
[1770437670215,0.09085904,71382.0,71355.0,0.014023]
[1770437670418,0.09085904,71382.0,71363.0,0.014022]
[1770437670616,0.09085904,71382.0,71359.0,0.014023]
[1770437670913,0.09084423,71392.0,71368.0,0.014021]
[1770437671619,0.09084423,71392.0,71352.0,0.014024]
[1770437671620,0.10486023,71392.0,71364.0,0.014022]
[1770437671927,0.09080932,71388.0,71360.0,0.014022]
[1770437672121,0.09080932,71384.0,71360.0,0.014022]
[1770437673121,0.09067431,71382.0,71346.0,0.1635039]
[1770437673327,0.09067431,71378.0,71340.0,0.30114605]
[1770437673523,0.09067431,71378.0,71354.0,0.014024]
[1770437674323,0.09067431,71378.0,71340.0,0.13764215]
[1770437674324,0.09067431,71378.0,71343.0,0.014026]
[1770437674530,0.09067431,71378.0,71356.0,0.014023]
[1770437675524,0.014016,71395.0,71297.0,0.5599245]
[1770437675525,0.09080825,71373.0,71342.0,0.014026]
[1770437675827,0.09080825,71373.0,71357.0,0.014023]
[1770437676023,0.09080825,71373.0,71341.0,0.1635039]
[1770437676229,0.09080825,71373.0,71355.0,0.014023]
[1770437677924,0.09080825,71373.0,71352.0,0.014024]
[1770437679523,0.09080825,71373.0,71353.0,0.21057103]
[1770437679724,0.09080825,71373.0,71355.0,0.014023]
[1770437679928,0.09080825,71373.0,71356.0,0.21057103]
[1770437680130,0.09080825,71373.0,71357.0,0.21057103]
[1770437680336,0.09080825,71373.0,71358.0,0.21057108]
[1770437680524,0.09080825,71373.0,71355.0,0.1775269]
[1770437680525,0.09080825,71373.0,71359.0,0.02949924]
[1770437680732,0.09080825,71373.0,71352.0,0.1635039]
[1770437681123,0.09080825,71373.0,71350.0,0.1635039]
[1770437681324,0.09080825,71373.0,71349.0,0.014025]
[1770437682724,0.0201452,71371.0,71349.0,0.014025]
[1770437682923,0.0201452,71371.0,71346.0,0.1635039]
[1770437683228,0.014021,71367.0,71346.0,0.014025]
[1770437683433,0.02030447,71366.0,71343.0,0.1635039]
[1770437683628,0.02030447,71360.0,71340.0,0.014026]
[1770437684939,0.02030447,71360.0,71335.0,0.1635039]
[1770437684940,0.02095132,71359.0,71337.0,0.014027]
[1770437685126,0.02095132,71359.0,71339.0,0.014026]
[1770437686036,0.02095132,71359.0,71334.0,0.1635039]
[1770437686231,0.02095132,71359.0,71333.0,0.1635039]
[1770437686531,0.02095132,71384.0,71355.0,0.014023]
[1770437686734,0.02095132,71384.0,71349.0,0.1635039]
[1770437687030,0.02098241,71397.0,71364.0,0.014022]
[1770437687224,0.02098241,71388.0,71359.0,0.1635039]
[1770437687530,0.02098241,71382.0,71357.0,0.014023]
[1770437687736,0.02098241,71382.0,71352.0,0.014024]
[1770437688231,0.02098241,71382.0,71350.0,0.1635039]
[1770437688232,0.02098241,71382.0,71356.0,0.014023]
[1770437688434,0.02098241,71382.0,71360.0,0.014022]
[1770437688824,0.02062549,71381.0,71360.0,0.014022]
[1770437689223,0.02062549,71381.0,71355.0,0.1635039]
[1770437689431,0.5,71382.0,71364.0,0.014022]
[1770437689828,0.5,71382.0,71368.0,0.014021]
[1770437690034,0.5,71382.0,71363.0,0.014022]
[1770437690431,0.02062549,71390.0,71363.0,0.014022]
[1770437691729,0.02062549,71390.0,71360.0,0.1635039]